bitfinex-derivatives/quotes_SOLF0:USTF0_20260110
["timestamp","ask_amount","ask_price","bid_price","bid_amount"]
[1768021056225,5.41481964,135.88,135.82,0.31823713]
[1768021056529,1.58843235,135.89,135.82,0.31823713]
[1768021056719,5.41553613,135.88,135.82,0.31823713]
[1768021056922,1.58843235,135.87,135.79,6.95444827]
[1768021057123,5.41644281,135.86,135.79,6.95444827]
[1768021057425,8.22063235,135.88,135.79,6.95444827]
[1768021057625,5.41616591,135.87,135.79,6.95444827]
[1768021057823,8.22063235,135.88,135.79,6.95444827]
[1768021057824,5.41616591,135.86,135.79,6.95444827]
[1768021058030,8.22063235,135.88,135.79,6.95444827]
[1768021058226,5.41636828,135.87,135.79,6.95444827]
[1768021058427,5.41636828,135.86,135.79,6.95444827]
[1768021058625,8.22063235,135.88,135.79,6.95444827]
[1768021058831,5.4163034,135.87,135.79,6.95444827]
[1768021059023,5.4163034,135.86,135.79,6.95444827]
[1768021059223,8.22063235,135.88,135.79,6.95444827]
[1768021059522,5.41630174,135.87,135.79,6.95444827]
[1768021059723,5.41630174,135.86,135.79,6.95444827]
[1768021059926,8.22063235,135.88,135.79,6.95444827]
[1768021060124,5.41625122,135.87,135.79,6.95444827]
[1768021060333,7.00468357,135.86,135.79,0.31824827]
[1768021060631,6.6328,135.87,135.79,0.31824827]
[1768021060833,5.41620637,135.86,135.79,0.31824827]
[1768021061029,6.6328,135.87,135.79,0.31824827]
[1768021061230,5.41620637,135.86,135.79,0.31824827]
[1768021061434,6.6328,135.87,135.79,0.31824827]
[1768021061626,5.41608179,135.86,135.79,0.31824827]
[1768021061826,6.6328,135.87,135.79,0.31824827]
[1768021062023,5.41608179,135.86,135.79,0.31824827]
[1768021062229,6.6328,135.87,135.79,0.31824827]
[1768021062430,5.41608179,135.86,135.79,0.31824827]
[1768021062629,6.6328,135.87,135.79,0.31824827]
[1768021062923,5.41596058,135.86,135.79,0.31824827]
[1768021063128,6.6328,135.87,135.79,0.31824827]
[1768021063329,5.41596058,135.86,135.79,0.31824827]
[1768021063526,6.6328,135.87,135.79,0.31824827]
[1768021063728,5.41584264,135.86,135.79,0.31824827]
[1768021063925,6.6328,135.87,135.79,0.31824827]
[1768021064129,5.41584264,135.86,135.79,0.31824827]
[1768021064429,6.6328,135.87,135.79,0.31824827]
[1768021064628,5.41572787,135.86,135.79,0.31824827]
[1768021064835,6.6328,135.87,135.79,0.31824827]
[1768021065037,5.41572787,135.86,135.79,0.31824827]
[1768021065236,6.6328,135.87,135.79,0.31824827]
[1768021065534,5.41573136,135.86,135.79,0.31824827]
[1768021065735,6.6328,135.87,135.8,0.31824827]
[1768021065934,5.41573136,135.86,135.8,0.31824827]
[1768021066135,6.6328,135.87,135.8,0.31824827]
[1768021066336,5.41560492,135.86,135.8,0.31824827]
[1768021066637,6.6328,135.87,135.8,0.31824827]
[1768021066838,5.41562699,135.86,135.8,0.31824827]
[1768021067039,6.6328,135.87,135.8,0.31824827]
[1768021067240,5.41562699,135.86,135.8,0.31824827]
[1768021067439,22.12,135.89,135.8,0.31824827]
[1768021067635,24.60131571,135.93,135.83,0.31824827]
[1768021067829,5.41418833,135.92,135.83,0.31824827]
[1768021068038,5.41418833,135.91,135.83,0.31824827]
[1768021068241,5.41418833,135.9,135.83,6.95254827]
[1768021068440,31.23101571,135.93,135.84,0.31824827]
[1768021068640,5.41227845,135.92,135.84,0.31824827]
[1768021068842,5.41227845,135.91,135.84,0.31824827]
[1768021069144,31.23101571,135.93,135.84,0.31824827]
[1768021069441,5.41187243,135.92,135.84,0.31824827]
[1768021069630,5.41187243,135.91,135.84,0.31824827]
[1768021069829,28.7497,135.93,135.84,6.95204827]
[1768021070033,5.41016173,135.92,135.85,0.31824827]
[1768021070232,5.41016173,135.91,135.85,0.31824827]
[1768021070433,28.7497,135.93,135.85,0.31824827]
[1768021070634,5.40871453,135.92,135.85,0.31824827]
[1768021070842,5.40871453,135.91,135.85,0.31824827]
[1768021071031,28.7497,135.93,135.85,0.31824827]
[1768021071231,5.40871453,135.92,135.85,0.31824827]
[1768021071438,28.7497,135.93,135.85,0.31824827]
[1768021071637,5.40755683,135.92,135.85,0.31824827]
[1768021071839,6.6297,135.93,135.85,0.31824827]
[1768021072040,5.4070624,135.92,135.85,0.31824827]
[1768021072343,6.6297,135.93,135.85,0.31824827]
[1768021072543,5.40590171,135.92,135.85,0.31824827]
[1768021072745,6.6297,135.93,135.85,0.31824827]
[1768021073044,5.40580849,135.92,135.85,0.31824827]
[1768021073238,6.6297,135.93,135.85,0.31824827]
[1768021079349,6.6302,135.92,135.85,0.31824827]
[1768021091063,93.6495,135.94,135.86,0.3087056]
[1768021092566,93.6495,135.94,135.86,6.9416056]
[1768021094968,6.6295,135.94,135.86,6.9416056]
[1768021102372,2.48131571,135.96,135.83,0.3087056]
[1768021102572,2.48131571,135.9,135.81,0.3087056]
[1768021103576,9.11261571,135.9,135.81,0.3087056]
[1768021105076,6.6313,135.9,135.81,0.3087056]
[1768021108381,2.48131571,135.91,135.8,6.6357]
[1768021108578,9.11351571,135.88,135.79,0.3087056]
[1768021109277,5.46160345,135.87,135.79,0.3087056]
[1768021109578,9.11351571,135.88,135.79,0.3087056]
[1768021109781,5.46053782,135.87,135.79,0.3087056]
[1768021109980,9.11351571,135.88,135.79,0.3087056]
[1768021110278,5.46053782,135.87,135.79,0.3087056]
[1768021110580,9.11351571,135.88,135.79,0.3087056]
[1768021110874,5.46064689,135.87,135.79,0.3087056]
[1768021111079,9.11351571,135.88,135.79,0.3087056]
[1768021111276,5.46064689,135.87,135.79,0.3087056]
[1768021111475,9.11351571,135.88,135.79,0.3087056]
[1768021111679,5.46073119,135.87,135.79,0.3087056]
[1768021111882,9.11351571,135.88,135.79,0.3087056]
[1768021112076,5.46073119,135.87,135.79,0.3087056]
[1768021112276,9.11351571,135.88,135.79,0.3087056]
[1768021112476,5.46081584,135.87,135.79,0.3087056]
[1768021112777,9.11351571,135.88,135.79,0.3087056]
[1768021112978,5.46081584,135.87,135.79,0.3087056]
[1768021113280,9.11351571,135.88,135.79,0.3087056]
[1768021113578,5.45931587,135.87,135.79,0.3087056]
[1768021113779,9.11351571,135.88,135.79,0.3087056]
[1768021113983,5.45931587,135.87,135.79,0.3087056]
[1768021114176,9.11351571,135.88,135.79,0.3087056]
[1768021114373,5.45901719,135.87,135.79,0.3087056]
[1768021114574,9.11351571,135.88,135.79,0.3087056]
[1768021119081,9.11351571,135.88,135.8,0.31293003]
[1768021122589,8.21976207,135.88,135.8,0.31293003]
[1768021124389,6.6322,135.88,135.8,0.31293003]
[1768021124687,1.58756207,135.87,135.8,0.31293003]
[1768021125793,1.58756207,135.87,135.8,6.94883003]
[1768021135199,6.6322,135.88,135.8,6.94883003]
[1768021135404,1.58756207,135.87,135.8,6.94883003]
[1768021138909,1.58756207,135.87,135.81,0.31542423]
[1768021141712,1.58756207,135.87,135.81,6.95082423]
[1768021142509,1.58756207,135.87,135.81,0.31542423]
[1768021142705,6.6322,135.88,135.81,0.31542423]
[1768021142906,1.58756207,135.87,135.81,0.31542423]
[1768021143107,6.6322,135.88,135.81,0.31542423]
[1768021143411,1.58756207,135.87,135.81,0.31542423]
[1768021146701,6.6322,135.88,135.81,0.31542423]
[1768021146905,8.21976207,135.88,135.81,0.31542423]
[1768021149408,5.41367608,135.87,135.81,0.31542423]
[1768021149609,8.21976207,135.88,135.81,0.31542423]
[1768021149808,5.41367608,135.87,135.81,0.31542423]
[1768021150107,8.21976207,135.88,135.81,0.31542423]
[1768021150308,5.41373119,135.87,135.81,0.31542423]
[1768021150516,8.21976207,135.88,135.81,0.31542423]
[1768021150707,5.41480057,135.87,135.81,0.31542423]
[1768021150908,8.21976207,135.88,135.81,0.31542423]
[1768021151205,5.41480057,135.87,135.81,6.95082423]
[1768021151410,8.21976207,135.88,135.81,6.95082423]
[1768021151615,5.41610401,135.87,135.81,6.95082423]
[1768021151822,8.21976207,135.88,135.81,6.95082423]
[1768021152008,5.41610401,135.87,135.81,6.95082423]
[1768021152204,8.21976207,135.88,135.81,6.95082423]
[1768021152409,5.41608586,135.87,135.81,6.95082423]
[1768021152614,8.21976207,135.88,135.81,6.95082423]
[1768021152814,5.41768347,135.87,135.82,0.32512049]
[1768021153014,8.21976207,135.88,135.82,0.32512049]
[1768021153217,5.41760481,135.87,135.82,0.32512049]
[1768021153417,8.21976207,135.88,135.82,0.32512049]
[1768021153618,5.4197844,135.87,135.82,0.32512049]
[1768021153916,8.21976207,135.88,135.82,0.32512049]
[1768021154215,5.41979148,135.87,135.82,0.32512049]
[1768021154419,8.21976207,135.88,135.82,0.32512049]
[1768021154625,5.41959645,135.87,135.82,0.32512049]
[1768021154917,8.21976207,135.88,135.82,0.32512049]
[1768021155119,5.41959645,135.87,135.82,0.32512049]
[1768021155326,8.21976207,135.88,135.82,0.32512049]
[1768021155515,5.41942819,135.87,135.82,0.32512049]
[1768021155810,8.21976207,135.88,135.82,0.32512049]
[1768021156011,5.41942819,135.87,135.82,0.32512049]
[1768021156216,8.21976207,135.88,135.82,0.32512049]
[1768021156411,5.41927704,135.87,135.82,0.32512049]
[1768021156612,8.21976207,135.88,135.82,0.32512049]
[1768021156818,5.41887792,135.87,135.82,0.32512049]
[1768021157020,8.21976207,135.88,135.82,0.32512049]
[1768021157209,5.41847377,135.87,135.8,0.32512049]
[1768021157415,5.41918726,135.86,135.8,0.32512049]
[1768021157720,8.21976207,135.88,135.8,0.32512049]
[1768021157921,5.41938977,135.87,135.8,0.32512049]
[1768021158121,5.41938977,135.86,135.8,0.32512049]
[1768021158322,8.21976207,135.88,135.8,0.32512049]
[1768021158522,5.41946485,135.87,135.8,0.32512049]
[1768021158822,5.41946485,135.86,135.8,0.32512049]
[1768021159016,8.21976207,135.88,135.8,0.32512049]
[1768021159217,5.41932271,135.87,135.8,0.32512049]
[1768021159417,5.41932271,135.86,135.8,0.32512049]
[1768021159717,8.21976207,135.88,135.8,0.32512049]
[1768021159912,5.41954396,135.87,135.8,0.32512049]
[1768021160118,5.41954396,135.86,135.8,0.32512049]
[1768021160320,8.21976207,135.88,135.8,0.32512049]
[1768021160510,5.41962818,135.87,135.8,0.32512049]
[1768021160716,5.41962818,135.86,135.8,0.32512049]
[1768021160913,8.21976207,135.88,135.8,0.32512049]
[1768021161216,5.41962818,135.87,135.8,0.32512049]
[1768021161413,8.21976207,135.88,135.8,0.32512049]
[1768021161414,5.41962818,135.86,135.8,0.32512049]
[1768021161616,8.21976207,135.88,135.8,0.32512049]
[1768021161810,5.41975855,135.87,135.8,0.32512049]
[1768021162016,5.41975855,135.86,135.8,0.32512049]
[1768021162228,6.6326,135.87,135.8,0.32512049]
[1768021162420,5.41981435,135.86,135.8,0.32512049]
[1768021162621,1.58756207,135.86,135.8,0.32512049]
[1768021166627,8.22016207,135.87,135.8,0.32512049]
[1768021166828,5.42008012,135.86,135.8,0.32512049]
[1768021167129,8.22016207,135.87,135.8,0.32512049]
[1768021167327,5.42012328,135.86,135.8,0.32512049]
[1768021167528,8.22016207,135.87,135.8,0.32512049]
[1768021167829,5.42009078,135.86,135.8,0.32512049]
[1768021168028,8.22016207,135.87,135.8,0.32512049]
[1768021168229,5.4201336,135.86,135.8,0.32512049]
[1768021168430,8.22016207,135.87,135.8,0.32512049]
[1768021168629,5.42010154,135.86,135.8,0.32512049]
[1768021168830,8.22016207,135.87,135.8,0.32512049]
[1768021169030,5.42010154,135.86,135.8,0.32512049]
[1768021169228,6.6331,135.86,135.78,0.32512049]
[1768021169431,6.96809661,135.85,135.78,0.32512049]
[1768021169729,8.22066207,135.86,135.78,0.32512049]
[1768021169930,5.38053289,135.85,135.78,0.32512049]
[1768021170132,8.22066207,135.86,135.78,0.32512049]
[1768021171333,5.38025137,135.85,135.78,0.32512049]
[1768021171528,1.58756207,135.85,135.78,0.32512049]
[1768021172235,5.37997858,135.84,135.78,0.32512049]
[1768021172441,1.58756207,135.85,135.78,0.32512049]
[1768021172640,5.37992424,135.84,135.78,0.32512049]
[1768021172839,1.58756207,135.85,135.78,0.32512049]
[1768021173135,5.37992424,135.84,135.78,0.32512049]
[1768021173334,1.58756207,135.85,135.78,0.32512049]
[1768021173534,5.37892354,135.84,135.78,0.32512049]
[1768021173736,1.58756207,135.85,135.78,0.32512049]
[1768021174035,5.37902404,135.84,135.78,0.32512049]
[1768021174236,1.58756207,135.85,135.78,0.32512049]
[1768021174535,5.37815727,135.84,135.78,0.32512049]
[1768021174737,1.58756207,135.85,135.78,0.32512049]
[1768021174938,5.37806695,135.84,135.78,0.32512049]
[1768021175137,1.58756207,135.85,135.78,0.32512049]
[1768021175533,6.6331,135.86,135.78,0.32512049]
[1768021175733,6.9647986,135.85,135.78,0.32512049]
[1768021175933,1.58756207,135.85,135.78,0.32512049]
[1768021180438,8.22116207,135.85,135.78,0.32512049]
[1768021182235,6.6336,135.85,135.78,0.32512049]
[1768021182428,1.58756207,135.86,135.79,0.31294377]
[1768021182634,5.37368507,135.85,135.79,0.31294377]
[1768021182928,9.11399593,135.87,135.79,0.31294377]
[1768021183131,5.37368134,135.86,135.79,0.31294377]
[1768021183333,5.37368134,135.85,135.79,0.31294377]
[1768021183540,9.11399593,135.87,135.79,0.31294377]
[1768021183839,5.37338211,135.86,135.79,0.31294377]
[1768021184041,6.6328,135.87,135.8,0.31294377]
[1768021190740,5.37307798,135.86,135.8,0.31294377]
[1768021191042,6.6328,135.87,135.8,0.31294377]
[1768021191243,6.6328,135.87,135.8,6.94864377]
[1768021195039,9.11309593,135.89,135.8,6.94864377]
[1768021195236,5.37294293,135.88,135.8,6.94864377]
[1768021195440,5.37294293,135.87,135.8,6.94864377]
[1768021195639,9.11309593,135.89,135.8,6.94864377]
[1768021195841,5.37294293,135.88,135.8,6.94864377]
[1768021196037,5.37294293,135.87,135.8,6.94864377]
[1768021196243,9.11309593,135.89,135.8,6.94864377]
[1768021196444,5.37309006,135.88,135.8,6.94864377]
[1768021196645,5.37309006,135.87,135.8,6.94864377]
[1768021196839,9.11309593,135.89,135.8,6.94864377]
[1768021197043,5.37299341,135.88,135.8,6.94864377]
[1768021197239,5.37299341,135.87,135.8,6.94864377]
[1768021197443,6.6321,135.88,135.8,6.94864377]
[1768021197644,5.37311787,135.87,135.8,6.94864377]
[1768021197943,6.6321,135.88,135.8,6.94864377]
[1768021198144,5.37311787,135.87,135.8,6.94864377]
[1768021198346,6.6321,135.88,135.8,6.94864377]
[1768021198548,5.37324468,135.87,135.8,6.94864377]
[1768021198846,6.6321,135.88,135.8,6.94864377]
[1768021199147,5.37324468,135.87,135.8,6.94864377]
[1768021199342,6.6321,135.88,135.8,6.94864377]
[1768021199545,5.38200307,135.87,135.8,6.94864377]
[1768021199745,6.6321,135.88,135.8,6.94864377]
[1768021199948,5.38200307,135.87,135.8,6.94864377]
[1768021200154,6.6321,135.88,135.8,6.94864377]
[1768021200356,6.6321,135.88,135.81,0.32316868]
[1768021200357,5.3821294,135.87,135.81,0.32316868]
[1768021200656,6.6321,135.88,135.81,0.32316868]
[1768021200849,5.38212236,135.87,135.81,0.32316868]
[1768021201049,6.6321,135.88,135.81,0.32316868]
[1768021201254,5.38226251,135.87,135.81,0.32316868]
[1768021201450,6.6321,135.88,135.81,0.32316868]
[1768021201665,5.38226251,135.87,135.81,0.32316868]
[1768021201865,6.6321,135.88,135.81,0.32316868]
[1768021202064,5.38226251,135.87,135.81,0.32316868]
[1768021202256,6.6321,135.88,135.81,0.32316868]
[1768021202457,5.38264547,135.87,135.81,0.32316868]
[1768021202654,6.6321,135.88,135.81,0.32316868]
[1768021202858,5.38264547,135.87,135.81,0.32316868]
[1768021203058,6.6321,135.88,135.81,0.32316868]
[1768021203357,5.38255541,135.87,135.81,0.32316868]
[1768021203559,6.6321,135.88,135.81,0.32316868]
[1768021203758,5.38253849,135.87,135.81,0.32316868]
[1768021203964,6.6321,135.88,135.81,0.32316868]
[1768021204159,5.38303831,135.87,135.81,0.32316868]
[1768021204361,6.6321,135.88,135.81,0.32316868]
[1768021204567,5.38289587,135.87,135.81,0.32316868]
[1768021204772,6.6321,135.88,135.81,0.32316868]
[1768021204960,5.38309905,135.87,135.81,0.32316868]
[1768021205161,6.6321,135.88,135.81,0.32316868]
[1768021205456,5.38287676,135.87,135.81,0.32316868]
[1768021205656,6.6321,135.88,135.81,0.32316868]
[1768021205859,5.38287676,135.87,135.81,0.32316868]
[1768021206055,6.6321,135.88,135.81,0.32316868]
[1768021206268,5.38298729,135.87,135.81,0.32316868]
[1768021206462,6.6321,135.88,135.81,0.32316868]
[1768021206665,5.38285614,135.87,135.81,0.32316868]
[1768021206867,6.6321,135.88,135.81,0.32316868]
[1768021207065,5.38285588,135.87,135.81,0.32316868]
[1768021207366,6.6321,135.88,135.81,0.32316868]
[1768021207565,5.38278398,135.87,135.81,0.32316868]
[1768021207766,6.6321,135.88,135.81,0.32316868]
[1768021207966,5.38278398,135.87,135.81,0.32316868]
[1768021208265,6.6321,135.88,135.81,0.32316868]
[1768021208466,5.38275824,135.87,135.81,0.32316868]
[1768021208667,6.6321,135.88,135.81,0.32316868]
[1768021208866,5.38275824,135.87,135.81,0.32316868]
[1768021209168,6.6321,135.88,135.81,0.32316868]
[1768021209370,5.38273273,135.87,135.81,0.32316868]
[1768021209570,6.6321,135.88,135.81,0.32316868]
[1768021209770,5.38273273,135.87,135.81,0.32316868]
[1768021209971,6.6321,135.88,135.81,0.32316868]
[1768021210267,5.38273273,135.87,135.81,0.32316868]
[1768021210467,6.6321,135.88,135.81,0.32316868]
[1768021210669,5.38290898,135.87,135.81,0.32316868]
[1768021210870,5.38290898,135.86,135.81,0.32316868]
[1768021211071,6.6321,135.88,135.81,0.32316868]
[1768021211264,5.38300582,135.87,135.81,0.32316868]
[1768021211465,5.38300582,135.86,135.81,0.32316868]
[1768021211664,6.6321,135.88,135.81,0.32316868]
[1768021211869,5.38313724,135.87,135.81,0.32316868]
[1768021212075,5.38313724,135.86,135.81,0.32316868]
[1768021212370,6.6321,135.88,135.81,0.32316868]
[1768021212572,5.38315194,135.87,135.81,0.32316868]
[1768021212771,5.38315194,135.86,135.81,0.32316868]
[1768021212972,6.6321,135.88,135.81,0.32316868]
[1768021213173,5.38315194,135.87,135.81,0.32316868]
[1768021213472,5.38315194,135.86,135.81,0.32316868]
[1768021213673,6.6321,135.88,135.8,6.96028137]
[1768021213872,5.38318049,135.87,135.8,6.96028137]
[1768021214067,5.38318049,135.86,135.8,6.96028137]
[1768021214267,6.6321,135.88,135.8,6.96028137]
[1768021214474,5.38320984,135.87,135.8,6.96028137]
[1768021214676,6.6321,135.88,135.8,6.96028137]
[1768021214976,5.38280303,135.87,135.8,6.96028137]
[1768021215272,6.6321,135.88,135.81,0.32458137]
[1768021215472,5.38275007,135.87,135.81,0.32458137]
[1768021215673,6.6321,135.88,135.81,0.32458137]
[1768021215874,5.38253613,135.87,135.81,0.32458137]
[1768021216173,6.6321,135.88,135.81,0.32458137]
[1768021216372,5.38242962,135.87,135.81,0.32458137]
[1768021216568,6.6321,135.88,135.81,0.32458137]
[1768021216770,5.38243336,135.87,135.81,0.32458137]
[1768021216971,6.6321,135.88,135.81,0.32458137]
[1768021217170,5.38243336,135.87,135.81,0.32458137]
[1768021217369,6.6321,135.88,135.81,0.32458137]
[1768021217563,5.38250832,135.87,135.81,0.32458137]
[1768021217769,6.6321,135.88,135.81,0.32458137]
[1768021218067,5.38250832,135.87,135.81,0.32458137]
[1768021218268,6.6321,135.88,135.81,0.32458137]
[1768021218464,5.3827686,135.87,135.81,0.32458137]
[1768021218771,9.11269593,135.9,135.82,0.32458137]
[1768021219070,5.38201318,135.89,135.82,0.32458137]
[1768021219270,5.38201318,135.88,135.82,0.32458137]
[1768021219471,6.6315,135.9,135.82,0.32458137]
[1768021219666,5.38173191,135.89,135.82,0.32458137]
[1768021219872,5.38173191,135.88,135.82,0.32458137]
[1768021220168,6.6315,135.9,135.82,0.32458137]
[1768021220374,5.38157874,135.89,135.82,0.32458137]
[1768021220580,6.6315,135.9,135.82,0.32458137]
[1768021220775,5.38117583,135.89,135.82,0.32458137]
[1768021220978,6.6315,135.9,135.82,0.32458137]
[1768021221181,5.38117418,135.89,135.82,0.32458137]
[1768021221378,6.6315,135.9,135.82,0.32458137]
[1768021221578,5.38081346,135.89,135.82,0.32458137]
[1768021221778,6.6315,135.9,135.82,0.32458137]
[1768021221971,5.38101489,135.89,135.82,0.32458137]
[1768021222171,6.6315,135.9,135.82,0.32458137]
[1768021222369,5.38058396,135.89,135.82,0.32458137]
[1768021222573,6.6315,135.9,135.82,0.32458137]
[1768021222782,5.38058396,135.89,135.82,0.32458137]
[1768021223085,6.6315,135.9,135.82,0.32458137]
[1768021223372,5.38146257,135.89,135.82,0.32458137]
[1768021223576,6.6315,135.9,135.82,0.32458137]
[1768021223780,5.38114085,135.89,135.82,0.32458137]
[1768021223981,6.6315,135.9,135.82,0.32458137]
[1768021224168,5.38114085,135.89,135.82,0.32458137]
[1768021224373,6.6315,135.9,135.82,0.32458137]
[1768021224673,5.38139584,135.89,135.82,0.32458137]
[1768021224873,6.6315,135.9,135.82,0.32458137]
[1768021225082,5.38139584,135.89,135.82,0.32458137]
[1768021225280,5.38139584,135.88,135.82,0.32458137]
[1768021225473,6.6315,135.9,135.82,0.32458137]
[1768021225670,5.38175864,135.89,135.82,0.32458137]
[1768021225874,6.6315,135.9,135.83,0.32458137]
[1768021226075,5.381668,135.89,135.83,0.32458137]
[1768021226276,96.15149593,135.92,135.83,0.32458137]
[1768021226476,5.3807718,135.91,135.83,0.32458137]
[1768021226682,5.3807718,135.9,135.83,0.32458137]
[1768021226983,96.15149593,135.92,135.83,0.32458137]
[1768021227181,5.3807718,135.91,135.83,0.32458137]
[1768021227383,5.3807718,135.9,135.83,0.32458137]
[1768021227686,96.15149593,135.92,135.83,6.95878137]
[1768021227977,5.38031968,135.91,135.83,6.95878137]
[1768021228184,5.38031968,135.9,135.83,6.95878137]
[1768021228375,93.6703,135.92,135.83,6.95878137]
[1768021228576,5.38004088,135.91,135.83,6.95878137]
[1768021228883,5.38004088,135.9,135.83,6.95878137]
[1768021229075,93.6703,135.92,135.83,6.95878137]
[1768021229276,5.38016418,135.91,135.83,6.95878137]
[1768021229479,5.38016418,135.9,135.83,6.95878137]
[1768021229679,93.6703,135.92,135.83,6.95878137]
[1768021229880,5.37696517,135.91,135.83,6.95878137]
[1768021230080,5.37696517,135.9,135.83,6.95878137]
[1768021230384,93.6703,135.92,135.83,6.95878137]
[1768021230581,5.37632503,135.91,135.83,6.95878137]
[1768021230776,5.37632503,135.9,135.83,6.95878137]
[1768021230976,6.6307,135.91,135.83,6.95878137]
[1768021231182,5.37652632,135.9,135.83,6.95878137]
[1768021231482,6.6307,135.91,135.83,6.95878137]
[1768021231683,5.37609423,135.9,135.83,6.95878137]
[1768021231984,6.6307,135.91,135.83,6.95878137]
[1768021232183,5.37609423,135.9,135.83,6.95878137]
[1768021232382,6.6307,135.91,135.83,6.95878137]
[1768021232584,5.37563853,135.9,135.83,6.95878137]
[1768021232886,6.6307,135.91,135.83,6.95878137]
[1768021233183,5.37563853,135.9,135.83,6.95878137]
[1768021233382,6.6307,135.91,135.83,6.95878137]
[1768021233584,5.37522969,135.9,135.83,6.95878137]
[1768021233781,6.6307,135.91,135.83,6.95878137]
[1768021233983,5.37522969,135.9,135.83,6.95878137]
[1768021234183,6.6307,135.91,135.83,6.95878137]
[1768021234382,5.37495684,135.9,135.83,6.95878137]
[1768021234584,6.6307,135.91,135.83,6.95878137]
[1768021234784,5.37495684,135.9,135.83,6.95878137]
[1768021234981,6.6307,135.91,135.83,6.95878137]
[1768021235184,5.37495684,135.9,135.83,6.95878137]
[1768021235486,6.6307,135.91,135.83,6.95878137]
[1768021235685,5.37449026,135.9,135.83,6.95878137]
[1768021235886,6.6307,135.91,135.83,6.95878137]
[1768021236087,5.37449026,135.9,135.83,6.95878137]
[1768021236286,6.6307,135.91,135.83,6.95878137]
[1768021236487,5.37432162,135.9,135.83,6.95878137]
[1768021236688,6.6307,135.91,135.84,0.30784012]
[1768021236888,5.37422483,135.9,135.84,0.30784012]
[1768021237089,6.6307,135.91,135.84,0.30784012]
[1768021237290,5.37430243,135.9,135.84,0.30784012]
[1768021237490,6.6307,135.91,135.84,0.30784012]
[1768021237691,5.37399428,135.9,135.84,0.30784012]
[1768021237880,6.6307,135.91,135.84,0.30784012]
[1768021238181,5.37399428,135.9,135.84,0.30784012]
[1768021238383,6.6307,135.91,135.84,0.30784012]
[1768021238583,5.37375535,135.9,135.84,0.30784012]
[1768021238783,6.6307,135.91,135.84,0.30784012]
[1768021238986,5.37375535,135.9,135.84,0.30784012]
[1768021239185,6.6307,135.91,135.84,0.30784012]
[1768021241493,6.6307,135.91,135.84,6.94174012]
[1768021242689,87.04,135.92,135.78,11.60712264]
[1768021242690,87.04,135.92,135.86,0.30784012]
[1768021242898,111.61119593,135.95,135.86,0.30784012]
[1768021243193,5.37138731,135.94,135.86,0.30784012]
[1768021243394,111.61119593,135.95,135.86,0.30784012]
[1768021243585,5.36933644,135.94,135.86,0.30784012]
[1768021243788,111.61119593,135.95,135.86,0.30784012]
[1768021243993,5.36933644,135.94,135.86,0.30784012]
[1768021244194,87.0,135.95,135.87,6.94024012]
[1768021244595,88.58587432,135.95,135.87,6.94024012]
[1768021245898,87.0,135.95,135.87,6.94024012]
[1768021246199,88.58587432,135.95,135.87,6.94024012]
[1768021253506,1.58587432,135.96,135.89,6.95320524]
[1768021257802,6.6278,135.97,135.89,6.95320524]
[1768021258003,8.21367432,135.97,135.89,6.95320524]
[1768021262516,1.58587432,135.93,135.87,0.32180524]
[1768021263119,1.58587432,135.94,135.87,0.32180524]
[1768021263821,8.21517432,135.94,135.87,0.32180524]
[1768021268425,1.58587432,135.94,135.87,6.95410524]
[1768021285533,8.21517432,135.94,135.87,0.32180524]
[1768021286435,5.37018523,135.93,135.87,0.32180524]
[1768021286627,8.21517432,135.94,135.87,0.32180524]
[1768021286829,5.37018523,135.93,135.87,0.32180524]
[1768021287136,6.6297,135.93,135.87,0.32180524]
[1768021289835,8.21557432,135.93,135.87,0.32180524]
[1768021293132,8.21477432,135.95,135.87,6.95430524]
[1768021293434,5.34507451,135.94,135.88,0.3010094]
[1768021293635,8.21477432,135.95,135.88,0.3010094]
[1768021293824,5.34510962,135.94,135.88,0.3010094]
[1768021294029,8.21477432,135.95,135.88,0.3010094]
[1768021294230,5.3451059,135.94,135.88,0.3010094]
[1768021294430,8.21477432,135.95,135.88,0.3010094]
[1768021294630,5.34510105,135.94,135.88,0.3010094]
[1768021294830,8.21477432,135.95,135.88,0.3010094]
[1768021295037,5.34510105,135.94,135.88,0.3010094]
[1768021295231,8.21477432,135.95,135.88,0.3010094]
[1768021295432,5.34509628,135.94,135.88,0.3010094]
[1768021295632,8.21477432,135.95,135.88,0.3010094]
[1768021295837,5.34509628,135.94,135.88,0.3010094]
[1768021296037,8.21477432,135.95,135.88,0.3010094]
[1768021296238,5.34509628,135.94,135.88,0.3010094]
[1768021296427,8.21477432,135.95,135.88,0.3010094]
[1768021296632,5.34509158,135.94,135.88,0.3010094]
[1768021296833,8.21477432,135.95,135.88,0.3010094]
[1768021297131,5.34509522,135.94,135.88,0.3010094]
[1768021297439,8.21477432,135.95,135.88,0.3010094]
[1768021297643,5.34508942,135.94,135.88,0.3010094]
[1768021297939,8.21477432,135.95,135.88,0.3010094]
[1768021298139,5.34508942,135.94,135.88,0.3010094]
[1768021298338,8.21477432,135.95,135.88,0.3010094]